bitfinex/quotes_BTCUSD_20251015
["timestamp","ask_amount","ask_price","bid_price","bid_amount"]
[1760567201517,0.19626499,111420.0,111410.0,0.1128]
[1760567201924,0.57906854,111420.0,111410.0,0.29231709]
[1760567202133,0.57906854,111420.0,111410.0,0.1128]
[1760567202537,0.17951709,111410.0,111400.0,0.56233635]
[1760567202764,0.18001583,111410.0,111400.0,0.67513635]
[1760567202970,0.00049874,111410.0,111400.0,0.67513635]
[1760567204274,0.00049874,111410.0,111400.0,1.0579399]
[1760567206299,0.00049874,111410.0,111400.0,0.67513635]
[1760567206505,0.00049874,111410.0,111400.0,0.2923328]
[1760567206786,0.00049874,111410.0,111400.0,0.67513635]
[1760567208637,0.00049874,111410.0,111400.0,0.2923328]
[1760567208897,0.00049874,111410.0,111400.0,0.67513635]
[1760567211711,0.00049874,111410.0,111400.0,1.0579399]
[1760567212722,0.00049874,111410.0,111400.0,1.14763002]
[1760567213189,0.00049874,111410.0,111400.0,1.43483002]
[1760567213419,0.00049874,111410.0,111400.0,1.54763002]
[1760567214050,0.00049874,111410.0,111400.0,1.43483002]
[1760567214497,0.00049874,111410.0,111400.0,1.54763002]
[1760567214988,0.00049874,111410.0,111400.0,1.43483002]
[1760567215405,0.00049874,111410.0,111400.0,1.54763002]
[1760567215604,0.00049874,111410.0,111400.0,1.43483002]
[1760567215826,0.00049874,111410.0,111400.0,1.54763002]
[1760567217143,0.00049874,111410.0,111400.0,2.27043357]
[1760567217829,0.00049874,111410.0,111400.0,1.88763002]
[1760567220356,0.00049874,111410.0,111400.0,1.77483002]
[1760567220574,0.00049874,111410.0,111400.0,1.90774518]
[1760567221477,0.00049874,111410.0,111400.0,1.90770518]
[1760567222495,0.00049874,111410.0,111400.0,1.79494518]
[1760567222725,0.00049874,111410.0,111400.0,1.90770518]
[1760567223334,0.00049874,111410.0,111400.0,1.79494518]
[1760567223552,0.00049874,111410.0,111400.0,1.90770518]
[1760567223759,0.00049874,111410.0,111400.0,1.39202647]
[1760567223974,0.00049874,111410.0,111400.0,0.99202647]
[1760567224188,0.00049874,111410.0,111400.0,0.2695328]
[1760567224430,0.18001583,111410.0,111400.0,0.2922928]
[1760567224644,0.18001583,111410.0,111400.0,0.56233635]
[1760567224851,0.00049874,111410.0,111400.0,0.56233635]
[1760567225675,0.00049874,111410.0,111400.0,0.67509635]
[1760567226095,0.00049874,111410.0,111400.0,0.56233635]
[1760567226496,0.00049874,111410.0,111400.0,0.67509635]
[1760567226902,0.00049874,111410.0,111400.0,0.56233635]
[1760567227064,0.00049874,111410.0,111400.0,0.67509635]
[1760567227268,0.18001583,111410.0,111400.0,0.67509635]
[1760567229048,0.00049874,111410.0,111400.0,0.56233635]
[1760567229255,0.00049874,111410.0,111400.0,0.2922928]
[1760567229459,0.17953321,111400.0,111390.0,0.18013502]
[1760567229879,0.17953321,111400.0,111390.0,0.29289502]
[1760567230223,0.17953321,111400.0,111390.0,0.18013502]
[1760567230437,0.17953321,111400.0,111390.0,0.29289502]
[1760567231476,0.56281938,111410.0,111390.0,0.29289502]
[1760567232102,0.00049874,111410.0,111400.0,0.17953321]
[1760567232330,0.00049874,111410.0,111400.0,0.56233676]
[1760567232736,0.00049874,111410.0,111400.0,0.67509676]
[1760567233556,0.00049874,111410.0,111400.0,1.14759043]
[1760567234008,0.00049874,111410.0,111400.0,1.54759043]
[1760567234211,0.00049874,111410.0,111400.0,1.88759043]
[1760567234420,0.00049874,111410.0,111400.0,1.77483043]
[1760567234849,0.00049874,111410.0,111400.0,1.88759043]
[1760567235381,0.00049874,111410.0,111400.0,1.5050331]
[1760567236266,0.00049874,111410.0,111400.0,1.12198333]
[1760567236495,0.00049874,111410.0,111400.0,1.3922731]
[1760567236706,0.00049874,111410.0,111400.0,1.5050331]
[1760567237564,4.913024,111430.0,111420.0,0.17950098]
[1760567237788,5.09250969,111430.0,111420.0,0.17959053]
[1760567238200,5.09250969,111430.0,111420.0,0.29235053]
[1760567238402,0.17948569,111430.0,111420.0,0.29235053]
[1760567238604,4.913024,111430.0,111420.0,0.17959053]
[1760567238830,4.914024,111430.0,111420.0,0.29235053]
[1760567239041,0.18048487,111430.0,111420.0,0.29235053]
[1760567239769,0.001,111430.0,111420.0,0.17959053]
[1760567239977,0.001,111430.0,111420.0,0.29235053]
[1760567240634,0.001,111430.0,111420.0,0.6754003]
[1760567241707,0.001,111430.0,111420.0,0.29235053]
[1760567242129,0.18048487,111430.0,111420.0,0.29235053]
[1760567245463,0.18048487,111430.0,111420.0,0.17959053]
[1760567245836,0.18048487,111430.0,111420.0,0.29235053]
[1760567246035,0.18048487,111430.0,111420.0,0.17959053]
[1760567246248,0.18048487,111430.0,111420.0,0.29235053]
[1760567246692,0.18048487,111430.0,111420.0,0.17959053]
[1760567246903,0.18048487,111430.0,111420.0,0.29235053]
[1760567247417,0.18048487,111430.0,111420.0,0.17959053]
[1760567248276,0.18048487,111430.0,111420.0,8.955e-05]
[1760567248460,5.47655864,111430.0,111420.0,8.955e-05]
[1760567248800,5.09350887,111430.0,111420.0,0.11284955]
[1760567249004,5.47655864,111430.0,111420.0,8.955e-05]
[1760567249227,5.09350887,111430.0,111420.0,0.11284955]
[1760567249429,5.09350887,111430.0,111420.0,8.955e-05]
[1760567249639,5.09350887,111430.0,111420.0,0.11284955]
[1760567250293,5.09350887,111430.0,111420.0,8.955e-05]
[1760567250506,5.56624876,111430.0,111420.0,8.955e-05]
[1760567250908,5.56624876,111430.0,111420.0,0.11284955]
[1760567251090,5.18319899,111430.0,111420.0,8.955e-05]
[1760567253395,5.56624876,111430.0,111420.0,8.955e-05]
[1760567253654,5.40256352,111430.0,111420.0,8.955e-05]
[1760567253858,5.92204839,111430.0,111420.0,8.955e-05]
[1760567255304,5.92204769,111430.0,111420.0,8.955e-05]
[1760567259059,5.95822997,111430.0,111420.0,8.955e-05]
[1760567259873,5.98597574,111430.0,111420.0,8.955e-05]
[1760567260457,6.09873574,111430.0,111420.0,8.955e-05]
[1760567260879,5.98597574,111430.0,111420.0,8.955e-05]
[1760567261062,6.09873574,111430.0,111420.0,8.955e-05]
[1760567261261,6.09873563,111430.0,111420.0,8.955e-05]
[1760567261701,6.1257126,111430.0,111420.0,8.955e-05]
[1760567261865,6.50893623,111430.0,111420.0,8.955e-05]
[1760567262064,6.55012889,111430.0,111420.0,8.955e-05]
[1760567262740,6.58248699,111430.0,111420.0,8.955e-05]
[1760567263063,6.58348699,111430.0,111420.0,8.955e-05]
[1760567263264,6.76773907,111430.0,111420.0,8.955e-05]
[1760567263473,6.73438097,111430.0,111420.0,8.955e-05]
[1760567263677,6.79107982,111430.0,111420.0,8.955e-05]
[1760567263882,6.79307982,111430.0,111420.0,8.955e-05]
[1760567264082,6.68031982,111430.0,111420.0,8.955e-05]
[1760567264311,6.74254267,111430.0,111420.0,8.955e-05]
[1760567264652,6.74252721,111430.0,111420.0,8.955e-05]
[1760567265599,6.74452721,111430.0,111420.0,8.955e-05]
[1760567266607,6.63176721,111430.0,111420.0,8.955e-05]
[1760567267012,6.74452721,111430.0,111420.0,8.955e-05]
[1760567267221,5.97842767,111430.0,111420.0,8.955e-05]
[1760567267433,6.54208513,111430.0,111420.0,8.955e-05]
[1760567267638,6.65484513,111430.0,111420.0,8.955e-05]
[1760567267873,6.4716326,111430.0,111420.0,8.955e-05]
[1760567268088,6.56722248,111430.0,111420.0,8.955e-05]
[1760567268295,6.56726248,111430.0,111420.0,8.955e-05]
[1760567268503,6.45446248,111430.0,111420.0,8.955e-05]
[1760567268700,6.45246248,111430.0,111420.0,8.955e-05]
[1760567268903,6.56526248,111430.0,111420.0,8.955e-05]
[1760567269121,6.56726248,111430.0,111420.0,8.955e-05]
[1760567269402,6.65694456,111430.0,111420.0,8.955e-05]
[1760567269604,6.5613202,111430.0,111420.0,8.955e-05]
[1760567269791,6.7686602,111430.0,111420.0,8.955e-05]
[1760567270028,6.56617812,111430.0,111420.0,8.955e-05]
[1760567270464,6.65486065,111430.0,111420.0,8.955e-05]
[1760567270842,6.45228012,111430.0,111420.0,8.955e-05]
[1760567271049,6.43510494,111430.0,111420.0,8.955e-05]
[1760567271250,6.56719147,111430.0,111420.0,8.955e-05]
[1760567271685,6.52379678,111430.0,111420.0,8.955e-05]
[1760567271904,6.53483448,111430.0,111420.0,8.955e-05]
[1760567272081,6.37863868,111430.0,111420.0,8.955e-05]
[1760567272283,6.49143868,111430.0,111420.0,8.955e-05]
[1760567272828,6.37863868,111430.0,111420.0,8.955e-05]
[1760567273029,6.56719238,111430.0,111420.0,8.955e-05]
[1760567273575,6.61347886,111430.0,111420.0,8.955e-05]
[1760567273778,6.65687776,111430.0,111420.0,8.955e-05]
[1760567274780,6.56719568,111430.0,111420.0,8.955e-05]
[1760567274986,6.45439568,111430.0,111420.0,8.955e-05]
[1760567275187,6.56719568,111430.0,111420.0,8.955e-05]
[1760567275607,6.45439568,111430.0,111420.0,8.955e-05]
[1760567275801,6.56719568,111430.0,111420.0,8.955e-05]
[1760567276898,6.54308518,111430.0,111420.0,8.955e-05]
[1760567277942,6.43028518,111430.0,111420.0,8.955e-05]
[1760567278145,6.54308518,111430.0,111420.0,8.955e-05]
[1760567278562,6.49599972,111430.0,111420.0,8.955e-05]
[1760567278765,6.31940738,111430.0,111420.0,8.955e-05]
[1760567279393,6.20660738,111430.0,111420.0,8.955e-05]
[1760567279807,6.31940738,111430.0,111420.0,8.955e-05]
[1760567280193,6.20660738,111430.0,111420.0,8.955e-05]
[1760567280434,6.31940738,111430.0,111420.0,8.955e-05]
[1760567282488,6.20660738,111430.0,111420.0,8.955e-05]
[1760567282712,6.31940738,111430.0,111420.0,8.955e-05]
[1760567282932,6.20660738,111430.0,111420.0,8.955e-05]
[1760567283122,6.31940738,111430.0,111420.0,8.955e-05]
[1760567283363,6.20660738,111430.0,111420.0,8.955e-05]
[1760567283577,6.31940738,111430.0,111420.0,8.955e-05]
[1760567284030,6.20660738,111430.0,111420.0,8.955e-05]
[1760567284478,6.31940738,111430.0,111420.0,8.955e-05]
[1760567285333,6.31941054,111430.0,111420.0,8.955e-05]
[1760567285569,6.23896864,111430.0,111420.0,8.955e-05]
[1760567285818,6.35176864,111430.0,111420.0,8.955e-05]
[1760567286445,6.32764473,111430.0,111420.0,8.955e-05]
[1760567287626,6.21484473,111430.0,111420.0,8.955e-05]
[1760567287836,6.32764473,111430.0,111420.0,8.955e-05]
[1760567288048,5.46642835,111430.0,111420.0,8.955e-05]
[1760567288463,5.91922835,111430.0,111420.0,8.955e-05]
[1760567288667,5.81461757,111430.0,111420.0,8.955e-05]
[1760567288847,5.58741757,111430.0,111420.0,8.955e-05]
[1760567289054,5.47461757,111430.0,111420.0,8.955e-05]
[1760567289252,5.92741757,111430.0,111420.0,8.955e-05]
[1760567289921,5.81461757,111430.0,111420.0,8.955e-05]
[1760567290240,5.92741757,111430.0,111420.0,8.955e-05]
[1760567291525,5.97595472,111430.0,111420.0,8.955e-05]
[1760567292352,5.92741757,111430.0,111420.0,8.955e-05]
[1760567293429,5.81461757,111430.0,111420.0,8.955e-05]
[1760567294047,5.92741757,111430.0,111420.0,8.955e-05]
[1760567294455,5.9516041,111430.0,111420.0,8.955e-05]
[1760567295165,5.95161676,111430.0,111420.0,8.955e-05]
[1760567295793,6.37619534,111430.0,111420.0,8.955e-05]
[1760567296249,6.43837724,111430.0,111420.0,8.955e-05]
[1760567296467,0.51953321,111400.0,111390.0,0.00058569]
[1760567296687,5.85414018,111400.0,111390.0,0.00108443]
[1760567296911,5.82996122,111400.0,111390.0,0.00108443]
[1760567297383,5.85694455,111400.0,111390.0,0.00108443]
[1760567297607,6.24080972,111400.0,111390.0,0.00108443]
[1760567297821,6.24180972,111400.0,111390.0,0.00108443]
[1760567298449,6.24180722,111400.0,111390.0,0.00108443]
[1760567299308,6.24080722,111400.0,111390.0,0.00108443]
[1760567299521,6.24180722,111400.0,111390.0,0.00108443]
[1760567302861,6.12900722,111400.0,111390.0,0.00108443]
[1760567303048,6.24180722,111400.0,111390.0,0.00108443]
[1760567303404,6.12900722,111400.0,111390.0,0.00108443]
[1760567304453,6.24180722,111400.0,111390.0,0.00108443]
[1760567307016,6.24186474,111400.0,111390.0,0.00108443]
[1760567307904,6.20225548,111400.0,111390.0,0.00108443]
[1760567308348,6.19386019,111400.0,111390.0,0.00108443]
[1760567308894,6.20225664,111400.0,111390.0,0.00108443]
[1760567309103,6.08945664,111400.0,111390.0,0.00108443]
[1760567309305,6.19386019,111400.0,111390.0,0.00108443]
[1760567311347,6.08106019,111400.0,111390.0,0.00108443]
[1760567311549,6.19386019,111400.0,111390.0,0.00108443]
[1760567313056,6.08106019,111400.0,111390.0,0.00108443]
[1760567313300,6.19386019,111400.0,111390.0,0.00108443]
[1760567314537,6.08106019,111400.0,111390.0,0.00108443]
[1760567314736,6.19386019,111400.0,111390.0,0.00108443]
[1760567315115,6.19286019,111400.0,111390.0,0.00108443]
[1760567315306,6.19286019,111400.0,111390.0,8.59e-05]
[1760567317471,6.08006019,111400.0,111390.0,8.59e-05]
[1760567317691,6.61249994,111400.0,111390.0,8.59e-05]
[1760567318129,6.62089595,111400.0,111390.0,8.59e-05]
[1760567318521,6.53227836,111400.0,111390.0,8.59e-05]
[1760567318680,6.5322705,111400.0,111390.0,8.59e-05]
[1760567318874,6.6450705,111400.0,111390.0,8.59e-05]
[1760567319283,6.5322705,111400.0,111390.0,8.59e-05]
[1760567319554,6.6450705,111400.0,111390.0,8.59e-05]
[1760567319969,6.5322705,111400.0,111390.0,8.59e-05]
[1760567320177,6.6450705,111400.0,111390.0,8.59e-05]
[1760567321535,6.5322705,111400.0,111390.0,8.59e-05]
[1760567321958,6.67730912,111400.0,111390.0,8.59e-05]
[1760567322189,7.13112418,111400.0,111390.0,8.59e-05]
[1760567322405,6.70585088,111400.0,111390.0,8.59e-05]
[1760567322610,6.81865088,111400.0,111390.0,8.59e-05]
[1760567323378,6.81765088,111400.0,111390.0,8.59e-05]
[1760567323586,7.20210168,111400.0,111390.0,8.59e-05]
[1760567323940,7.29178376,111400.0,111390.0,8.59e-05]
[1760567324167,7.13062583,111400.0,111390.0,8.59e-05]
[1760567324348,6.85996836,111400.0,111390.0,8.59e-05]
[1760567325084,6.90832643,111400.0,111390.0,8.59e-05]
[1760567328333,7.24342597,111400.0,111390.0,8.59e-05]
[1760567328535,7.29178167,111400.0,111390.0,8.59e-05]
[1760567329268,7.13062374,111400.0,111390.0,8.59e-05]
[1760567329442,7.24342374,111400.0,111390.0,8.59e-05]
[1760567330613,8.01033868,111400.0,111390.0,8.59e-05]
[1760567330823,8.05867517,111400.0,111390.0,8.59e-05]
[1760567331041,8.02645799,111400.0,111390.0,8.59e-05]
[1760567335121,6.7864035,111400.0,111390.0,8.59e-05]
[1760567335331,7.16986097,111400.0,111390.0,8.59e-05]
[1760567336835,7.16986183,111400.0,111390.0,8.59e-05]
[1760567337042,7.05706183,111400.0,111390.0,8.59e-05]
[1760567337251,7.16986183,111400.0,111390.0,8.59e-05]
[1760567337676,7.14674391,111400.0,111390.0,8.59e-05]
[1760567337884,7.25954391,111400.0,111390.0,8.59e-05]
[1760567338235,7.14674391,111400.0,111390.0,8.59e-05]
[1760567338445,7.25954391,111400.0,111390.0,8.59e-05]
[1760567339085,6.67360436,111400.0,111390.0,8.59e-05]
[1760567339297,6.78640436,111400.0,111390.0,8.59e-05]
[1760567339735,6.67360436,111400.0,111390.0,8.59e-05]
[1760567340066,6.58867688,111400.0,111390.0,8.59e-05]
[1760567340277,6.66923812,111400.0,111390.0,8.59e-05]
[1760567340459,6.6461202,111400.0,111390.0,8.59e-05]
[1760567340689,7.16500391,111400.0,111390.0,8.59e-05]
[1760567340895,7.05220391,111400.0,111390.0,8.59e-05]
[1760567341048,6.78154644,111400.0,111390.0,8.59e-05]
[1760567342915,6.78156448,111400.0,111390.0,8.59e-05]
[1760567343163,6.6918824,111400.0,111390.0,8.59e-05]
[1760567343369,6.5790824,111400.0,111390.0,8.59e-05]
[1760567344040,6.57909533,111400.0,111390.0,8.59e-05]
[1760567344471,7.0753528,111400.0,111390.0,8.59e-05]
[1760567344887,6.69189533,111400.0,111390.0,8.59e-05]
[1760567345204,6.66877741,111400.0,111390.0,8.59e-05]
[1760567345427,6.78157741,111400.0,111390.0,8.59e-05]
[1760567345649,7.11667695,111400.0,111390.0,8.59e-05]
[1760567346087,7.00387695,111400.0,111390.0,8.59e-05]
[1760567346306,7.11667695,111400.0,111390.0,8.59e-05]
[1760567346908,7.21121695,111400.0,111390.0,8.59e-05]
[1760567347342,7.27593316,111400.0,111390.0,8.59e-05]
[1760567347545,7.16313316,111400.0,111390.0,8.59e-05]
[1760567347781,7.27593316,111400.0,111390.0,8.59e-05]
[1760567348664,0.17956545,111380.0,111370.0,0.0004]
[1760567348863,6.64658219,111380.0,111370.0,0.0004]
[1760567349114,6.55312811,111380.0,111370.0,0.0004]
[1760567349371,6.66592811,111380.0,111370.0,0.0004]
[1760567349976,6.58011962,111380.0,111370.0,0.0004]
[1760567350215,6.74138302,111380.0,111370.0,0.0004]
[1760567350909,6.74238302,111380.0,111370.0,0.0004]
[1760567351735,6.74438302,111380.0,111370.0,0.0004]
[1760567352392,6.63158302,111380.0,111370.0,0.0004]
[1760567352635,6.74438302,111380.0,111370.0,0.0004]
[1760567353064,6.73978242,111380.0,111370.0,0.0004]
[1760567353306,6.75680892,111380.0,111370.0,0.0004]
[1760567353526,6.75680892,111380.0,111370.0,1e-08]
[1760567353742,7.90640764,111380.0,111370.0,1e-08]
[1760567353964,7.92343414,111380.0,111370.0,1e-08]
[1760567354396,6.77306173,111380.0,111370.0,1e-08]
[1760567355933,6.56056157,111380.0,111370.0,1e-08]
[1760567356155,6.72058783,111380.0,111370.0,1e-08]
[1760567356367,6.6928795,111380.0,111370.0,1e-08]
[1760567356586,5.7970236,111380.0,111370.0,1e-08]
[1760567356806,5.9098236,111380.0,111370.0,1e-08]
[1760567357243,5.7970236,111380.0,111370.0,1e-08]
[1760567357449,5.52636613,111380.0,111370.0,1e-08]
[1760567357630,5.5263691,111380.0,111370.0,1e-08]
[1760567357988,5.56255138,111380.0,111370.0,1e-08]
[1760567358636,5.43272488,111380.0,111370.0,1e-08]
[1760567359029,5.54552488,111380.0,111370.0,1e-08]
[1760567359236,5.63520696,111380.0,111370.0,1e-08]
[1760567360036,5.53943346,111380.0,111370.0,1e-08]
[1760567360631,5.65223346,111380.0,111370.0,1e-08]
[1760567361654,5.53943346,111380.0,111370.0,1e-08]
[1760567361845,5.65223346,111380.0,111370.0,1e-08]
[1760567362197,5.65223812,111380.0,111370.0,1e-08]
[1760567362787,5.74677812,111380.0,111370.0,1e-08]
[1760567362989,5.33073911,111350.0,111340.0,1e-08]
[1760567363216,5.56135183,111350.0,111340.0,1e-08]
[1760567363417,6.32885647,111350.0,111340.0,1e-08]
[1760567363635,6.35585799,111350.0,111340.0,1e-08]
[1760567363835,6.3235879,111350.0,111340.0,1e-08]
[1760567365372,6.3255879,111350.0,111340.0,1e-08]
[1760567365605,6.00371988,111340.0,111330.0,1e-08]
[1760567365818,6.16217627,111340.0,111330.0,1e-08]
[1760567366089,6.3298726,111340.0,111330.0,1e-08]
[1760567366514,6.26827812,111340.0,111330.0,1e-08]
[1760567366732,6.38107812,111340.0,111330.0,1e-08]
[1760567366955,5.58330339,111340.0,111330.0,1e-08]
[1760567367167,5.64169196,111340.0,111330.0,1e-08]
[1760567367380,5.52889196,111340.0,111330.0,1e-08]
[1760567367590,5.64169196,111340.0,111330.0,1e-08]
[1760567369335,5.64173196,111340.0,111330.0,1e-08]
[1760567369742,5.64173196,111340.0,111330.0,0.00234437]
[1760567370155,6.4092366,111340.0,111330.0,0.00234437]
[1760567372415,6.4091821,111340.0,111330.0,0.00234437]
[1760567377496,6.37697273,111340.0,111330.0,0.00234437]
[1760567378369,6.40915347,111340.0,111330.0,0.00234437]
[1760567378551,6.37697273,111340.0,111330.0,0.00234437]
[1760567379195,6.37695018,111340.0,111330.0,0.00234437]
[1760567379401,6.26411018,111340.0,111330.0,0.00234437]
[1760567379612,6.37695018,111340.0,111330.0,0.00234437]
[1760567379951,6.26411018,111340.0,111330.0,0.00234437]
[1760567380170,6.37695018,111340.0,111330.0,0.00234437]
[1760567380817,6.26411018,111340.0,111330.0,0.00234437]
[1760567381015,6.37695018,111340.0,111330.0,0.00234437]
[1760567382371,6.2641546,111340.0,111330.0,0.00234437]
[1760567382589,6.3769946,111340.0,111330.0,0.00234437]
[1760567383446,6.2641546,111340.0,111330.0,0.00234437]
[1760567383670,6.3769946,111340.0,111330.0,0.00234437]
[1760567384336,5.13008532,111340.0,111330.0,0.00234437]
[1760567384563,5.4896186,111340.0,111330.0,0.00234437]
[1760567384782,5.9424586,111340.0,111330.0,0.00234437]
[1760567384997,5.94715477,111340.0,111330.0,0.00234437]
[1760567385222,6.33090709,111340.0,111330.0,0.00234437]
[1760567385434,6.21806709,111340.0,111330.0,0.00234437]
[1760567385643,6.33090709,111340.0,111330.0,0.00234437]
[1760567385864,5.94715477,111340.0,111330.0,0.00234437]
[1760567386566,5.83431477,111340.0,111330.0,0.00234437]
[1760567386760,5.94715477,111340.0,111330.0,0.00234437]
[1760567386966,5.94715698,111340.0,111330.0,0.00234437]
[1760567387802,5.83431698,111340.0,111330.0,0.00234437]
[1760567388017,5.94715698,111340.0,111330.0,0.00234437]
[1760567388223,5.83431698,111340.0,111330.0,0.00234437]
[1760567388427,5.94715698,111340.0,111330.0,0.00234437]
[1760567389772,5.72987494,111340.0,111330.0,0.00234437]
[1760567389973,5.9095049,111340.0,111330.0,0.00234437]
[1760567390214,5.7966649,111340.0,111330.0,0.00234437]
[1760567391055,5.9095049,111340.0,111330.0,0.00234437]
[1760567391521,5.7966649,111340.0,111330.0,0.00234437]
[1760567391731,5.9095049,111340.0,111330.0,0.00234437]
[1760567394923,5.7966649,111340.0,111330.0,0.00234437]
[1760567395130,5.9095049,111340.0,111330.0,0.00234437]
[1760567397967,5.7966649,111340.0,111330.0,0.00234437]
[1760567398179,5.52575258,111340.0,111330.0,0.00234437]
[1760567398387,5.9095049,111340.0,111330.0,0.00234437]
[1760567399149,5.7966649,111340.0,111330.0,0.00234437]
[1760567399353,5.9095049,111340.0,111330.0,0.00234437]
[1760567399717,5.82890878,111340.0,111330.0,0.00234437]
[1760567399910,5.94174878,111340.0,111330.0,0.00234437]
[1760567401159,5.91756444,111340.0,111330.0,0.00234437]
[1760567402386,5.94179451,111340.0,111330.0,0.00234437]
[1760567402811,5.82895451,111340.0,111330.0,0.00234437]
[1760567403038,5.94175451,111340.0,111330.0,0.00234437]
[1760567403711,6.21270683,111340.0,111330.0,0.00234437]
[1760567403951,6.3536203,111340.0,111330.0,1e-08]
[1760567404426,6.30521516,111340.0,111330.0,1e-08]
[1760567405417,6.35365054,111340.0,111330.0,1e-08]
[1760567405739,6.30521516,111340.0,111330.0,1e-08]
[1760567406292,6.32783374,111340.0,111330.0,1e-08]
[1760567406498,6.37626791,111340.0,111330.0,1e-08]
[1760567408533,6.26346791,111340.0,111330.0,1e-08]
[1760567408779,6.37633493,111340.0,111330.0,1e-08]
[1760567408989,6.35371635,111340.0,111330.0,1e-08]
[1760567409442,5.96996403,111340.0,111330.0,1e-08]
[1760567409652,5.85712403,111340.0,111330.0,1e-08]
[1760567409869,5.94185764,111340.0,111330.0,1e-08]
[1760567410074,5.48901764,111340.0,111330.0,1e-08]
[1760567410282,5.79672678,111340.0,111330.0,1e-08]
[1760567410491,5.90956678,111340.0,111330.0,1e-08]
[1760567410694,5.90116776,111340.0,111330.0,1e-08]
[1760567411540,5.90957828,111340.0,111330.0,1e-08]
[1760567411765,5.79673828,111340.0,111330.0,1e-08]
[1760567412034,6.32562146,111340.0,111330.0,1e-08]
[1760567412248,6.40863729,111340.0,111330.0,1e-08]
[1760567412473,6.37634643,111340.0,111330.0,1e-08]
[1760567412710,6.29580163,111340.0,111330.0,1e-08]
[1760567412932,6.40864163,111340.0,111330.0,1e-08]
[1760567413999,6.37630643,111340.0,111330.0,1e-08]
[1760567414211,6.26350643,111340.0,111330.0,1e-08]
[1760567414421,6.37630643,111340.0,111330.0,1e-08]
[1760567414880,6.37630567,111340.0,111330.0,1e-08]
[1760567415094,6.14999753,111340.0,111330.0,1e-08]
[1760567415612,6.11770391,111340.0,111330.0,1e-08]
[1760567416125,6.11774566,111340.0,111330.0,1e-08]
[1760567418204,5.9887627,111340.0,111330.0,1e-08]
[1760567418683,6.01576577,111340.0,111330.0,1e-08]
[1760567419106,6.01572577,111340.0,111330.0,1e-08]
[1760567419523,6.40019263,111340.0,111330.0,1e-08]
[1760567420573,6.42345431,111340.0,111330.0,1e-08]
[1760567421740,6.31065431,111340.0,111330.0,1e-08]
[1760567421985,6.42345431,111340.0,111330.0,1e-08]
[1760567423503,6.31065431,111340.0,111330.0,1e-08]
[1760567423717,6.42345431,111340.0,111330.0,1e-08]
[1760567425181,6.45574793,111340.0,111330.0,1e-08]
[1760567425625,6.34294793,111340.0,111330.0,1e-08]
[1760567425805,6.45578793,111340.0,111330.0,1e-08]
[1760567426014,6.45574991,111340.0,111330.0,1e-08]
[1760567426223,6.43313133,111340.0,111330.0,1e-08]
[1760567426686,5.56404721,111340.0,111330.0,1e-08]
[1760567426913,5.879827,111340.0,111330.0,1e-08]
[1760567427402,6.26382014,111340.0,111330.0,1e-08]
[1760567427626,6.37662014,111340.0,111330.0,1e-08]
[1760567427854,6.26382014,111340.0,111330.0,1e-08]
[1760567428069,6.37662316,111340.0,111330.0,1e-08]
[1760567428263,6.40084337,111340.0,111330.0,1e-08]
[1760567428711,6.40084396,111340.0,111330.0,1e-08]
[1760567429676,6.01685346,111340.0,111330.0,1e-08]
[1760567429859,5.90405346,111340.0,111330.0,1e-08]
[1760567430545,6.01685346,111340.0,111330.0,1e-08]
[1760567431419,5.90405346,111340.0,111330.0,1e-08]
[1760567431678,6.01685346,111340.0,111330.0,1e-08]
[1760567431892,5.90405346,111340.0,111330.0,1e-08]
[1760567432333,6.01685346,111340.0,111330.0,1e-08]
[1760567432552,6.40084396,111340.0,111330.0,1e-08]
[1760567433514,5.90405346,111340.0,111330.0,1e-08]
[1760567433936,6.01685346,111340.0,111330.0,1e-08]
[1760567434926,5.90405346,111340.0,111330.0,1e-08]
[1760567435140,6.01685346,111340.0,111330.0,1e-08]
[1760567435579,5.90405346,111340.0,111330.0,1e-08]
[1760567436553,6.01685346,111340.0,111330.0,1e-08]
[1760567436757,6.28804396,111340.0,111330.0,1e-08]
[1760567436963,6.40084396,111340.0,111330.0,1e-08]
[1760567437823,6.43313758,111340.0,111330.0,1e-08]
[1760567438885,6.04914708,111340.0,111330.0,1e-08]
[1760567439543,6.06852854,111340.0,111330.0,1e-08]
[1760567440360,5.95572854,111340.0,111330.0,1e-08]
[1760567440567,6.06852854,111340.0,111330.0,1e-08]
[1760567441235,5.95572854,111340.0,111330.0,1e-08]
[1760567441441,6.06852854,111340.0,111330.0,1e-08]
[1760567441857,6.45251904,111340.0,111330.0,1e-08]
[1760567443408,6.33971904,111340.0,111330.0,1e-08]
[1760567443836,6.45251904,111340.0,111330.0,1e-08]
[1760567444258,5.91954626,111340.0,111330.0,1e-08]
[1760567444710,5.88725264,111340.0,111330.0,1e-08]
[1760567444932,5.52024957,111340.0,111330.0,0.1796461]
[1760567445151,5.39792684,111340.0,111330.0,1e-08]
[1760567445362,5.73792684,111340.0,111330.0,1e-08]
[1760567446211,5.73792684,111340.0,111330.0,0.00100001]
[1760567450486,5.78768556,111340.0,111330.0,0.00100001]
[1760567450740,5.0003231,111340.0,111330.0,0.00100001]
[1760567450968,5.7683041,111340.0,111330.0,0.00100001]
[1760567451446,5.76829857,111340.0,111330.0,0.00100001]
[1760567457582,5.76829857,111340.0,111330.0,0.1806461]
[1760567458264,5.76829857,111340.0,111330.0,0.00100001]
[1760567466284,5.76829857,111340.0,111330.0,0.1806461]
[1760567466661,5.76829857,111340.0,111330.0,0.00100001]
[1760567467085,5.76829857,111340.0,111330.0,0.1806461]
[1760567467295,4.98349864,111340.0,111330.0,0.00100001]
[1760567467521,5.76829237,111340.0,111330.0,0.00100001]
[1760567473486,5.00031137,111340.0,111330.0,0.00100001]
[1760567473690,5.38430187,111340.0,111330.0,0.00100001]
[1760567474325,5.40369643,111340.0,111330.0,0.00100001]
[1760567476565,6.17167743,111340.0,111330.0,0.00100001]
[1760567476788,6.28443743,111340.0,111330.0,0.00100001]
[1760567477011,6.4098462,111340.0,111330.0,0.00100001]
[1760567477229,6.45674119,111340.0,111330.0,0.00100001]
[1760567477435,6.37627481,111340.0,111330.0,0.00100001]
[1760567477609,6.48903481,111340.0,111330.0,0.00100001]
[1760567477807,6.46605844,111340.0,111330.0,0.00100001]
[1760567478014,6.35429844,111340.0,111330.0,1e-08]
[1760567478216,6.46705844,111340.0,111330.0,1e-08]
[1760567478416,5.97030794,111340.0,111330.0,1e-08]
[1760567478776,6.05077432,111340.0,111330.0,1e-08]
[1760567479433,5.2501556,111340.0,111330.0,1e-08]
[1760567479639,5.63301982,111340.0,111330.0,1e-08]
[1760567479844,5.49426027,111340.0,111330.0,1e-08]
[1760567480055,5.60702027,111340.0,111330.0,1e-08]
[1760567480232,5.60702788,111340.0,111330.0,1e-08]
[1760567480465,5.49426788,111340.0,111330.0,1e-08]
[1760567480728,5.60702788,111340.0,111330.0,1e-08]
[1760567482324,5.40457776,111340.0,111330.0,1e-08]
[1760567482951,5.02071354,111340.0,111330.0,1e-08]
[1760567483160,5.40357776,111340.0,111330.0,0.1796461]
[1760567483374,5.3841832,111340.0,111330.0,0.00100001]
[1760567483585,5.00031898,111340.0,111330.0,0.00100001]
[1760567483795,5.3841832,111340.0,111330.0,0.00100001]
[1760567485099,5.40356004,111340.0,111330.0,0.00100001]